bitfinex/quotes_SOLUSD_20250310
["timestamp","ask_amount","ask_price","bid_price","bid_amount"]
[1741648704910,222.08,119.14,119.09,35.15296226]
[1741648705090,257.23296226,119.14,119.1,35.15296226]
[1741648705294,35.15296226,119.13,119.09,35.15296226]
[1741648705723,257.23296226,119.14,119.09,35.15296226]
[1741648705924,222.08,119.14,119.1,35.15296226]
[1741648706624,35.15296226,119.13,119.09,55.29512383]
[1741648706792,35.15296226,119.13,119.09,55.15296226]
[1741648706995,222.08,119.14,119.1,8.3963]
[1741648706996,35.15296226,119.12,119.1,8.3963]
[1741648707192,222.08,119.14,119.1,8.3963]
[1741648707503,222.08,119.14,119.11,35.4372854]
[1741648707720,222.08,119.14,119.12,35.15296226]
[1741648707898,9.2,119.16,119.12,35.15296226]
[1741648708099,9.22,119.18,119.15,35.15296226]
[1741648708316,257.37296226,119.2,119.16,35.15296226]
[1741648708518,35.15296226,119.23,119.19,20.0]
[1741648708916,35.15296226,119.2,119.19,20.0]
[1741648709222,35.15296226,119.21,119.19,20.0]
[1741648709731,9.0483,119.24,119.17,29.3697]
[1741648709732,44.37296226,119.2,119.17,29.3697]
[1741648710226,9.22,119.2,119.19,20.0]
[1741648710719,62.12910713,119.2,119.19,0.03]
[1741648711726,9.22,119.2,119.19,0.03]
[1741648712103,62.12910713,119.2,119.19,0.03]
[1741648712421,62.41343027,119.2,119.19,0.03]
[1741648712804,70.80263027,119.2,119.19,0.03]
[1741648713201,62.41343027,119.2,119.19,0.03]
[1741648713610,62.12910713,119.2,119.19,0.03]
[1741648714410,52.97210713,119.23,119.19,52.93910713]
[1741648714608,9.323,119.23,119.19,0.03]
[1741648714815,52.90910713,119.21,119.19,0.03]
[1741648715014,62.23210713,119.23,119.19,0.03]
[1741648715210,62.23210713,119.23,119.19,52.93910713]
[1741648715411,62.25210713,119.23,119.19,52.93910713]
[1741648715611,52.90910713,119.22,119.19,0.03]
[1741648715811,52.90910713,119.21,119.2,20.0]
[1741648716011,62.25210713,119.23,119.21,20.0]
[1741648716221,52.97210713,119.23,119.19,52.93910713]
[1741648716428,62.25210713,119.23,119.19,52.93910713]
[1741648717031,0.063,119.23,119.22,20.0]
[1741648717202,9.28,119.25,119.21,52.90910713]
[1741648717402,62.18910713,119.25,119.21,52.90910713]
[1741648717624,52.90910713,119.24,119.2,29.3623]
[1741648718234,52.90910713,119.23,119.22,20.0]
[1741648718554,52.90910713,119.24,119.22,20.0]
[1741648718903,52.90910713,119.23,119.22,20.0]
[1741648719401,52.90910713,119.24,119.22,28.3878]
[1741648719602,52.90910713,119.25,119.22,49.3574]
[1741648719819,52.90910713,119.28,119.24,52.90910713]
[1741648720024,52.90910713,119.27,119.26,20.0]
[1741648720223,52.90910713,119.27,119.22,82.26650713]
[1741648720443,52.90910713,119.27,119.23,52.90910713]
[1741648720619,9.26,119.27,119.23,52.90910713]
[1741648720822,52.90910713,119.26,119.25,20.0]
[1741648721424,62.16910713,119.27,119.25,8.3857]
[1741648722645,52.90910713,119.26,119.25,8.3857]
[1741648722835,52.90910713,119.26,119.22,20.9693]
[1741648722836,52.90910713,119.26,119.23,8.3871]
[1741648723016,52.90910713,119.24,119.21,8.3885]
[1741648723215,17.6443,119.27,119.19,0.03]
[1741648723216,52.90910713,119.22,119.19,0.03]
[1741648723529,52.90910713,119.2,119.19,0.03]
[1741648723729,9.26,119.21,119.2,20.0]
[1741648724642,9.26,119.21,119.19,0.03]
[1741648724820,9.26,119.21,119.2,20.0]
[1741648725021,9.26,119.21,119.19,0.03]
[1741648725348,9.26,119.21,119.2,20.0]
[1741648725530,9.26,119.21,119.2,28.3892]
[1741648725940,9.26,119.21,119.2,8.3892]
[1741648726237,62.16910713,119.21,119.19,8.4199]
[1741648726440,52.90910713,119.2,119.19,8.4199]
[1741648726637,52.90910713,119.2,119.19,0.03]
[1741648727138,52.90910713,119.2,119.19,8.4199]
[1741648727525,9.26,119.21,119.19,0.03]
[1741648728024,9.26,119.21,119.2,20.0]
[1741648728557,52.90910713,119.23,119.21,20.0]
[1741648728722,52.90910713,119.22,119.21,20.0]
[1741648729243,62.14910713,119.23,119.2,20.0]
[1741648729443,62.14910713,119.23,119.22,8.3878]
[1741648729843,9.24,119.23,119.22,8.3878]
[1741648730019,62.14910713,119.23,119.2,8.3892]
[1741648730224,35.27806857,119.21,119.2,8.3892]
[1741648731526,35.27806857,119.22,119.19,0.03]
[1741648731743,35.27806857,119.21,119.19,0.03]
[1741648731934,35.27806857,119.2,119.19,0.03]
[1741648733628,43.95159171,119.2,119.19,0.03]
[1741648733823,52.99989171,119.2,119.19,0.03]
[1741648734019,0.28432314,119.19,119.12,20.9867]
[1741648734253,35.27806857,119.14,119.11,8.3956]
[1741648734551,35.27806857,119.12,119.11,8.3956]
[1741648734723,44.51806857,119.12,119.1,0.03]
[1741648734931,35.27806857,119.11,119.1,0.03]
[1741648735367,9.24,119.12,119.1,8.4259]
[1741648735547,35.27806857,119.11,119.1,0.03]
[1741648736361,53.02541704,119.11,119.1,0.03]
[1741648736966,106.33515722,119.11,119.1,0.03]
[1741648737164,53.02541704,119.11,119.1,0.03]
[1741648737675,62.26541704,119.12,119.1,0.03]
[1741648737964,9.24,119.12,119.1,53.05541704]
[1741648738131,222.2,119.16,119.14,20.0]
[1741648738333,53.02541704,119.18,119.1,11.1131]
[1741648738677,53.02541704,119.18,119.14,53.02541704]
[1741648738837,53.02541704,119.19,119.15,53.02541704]
[1741648739160,53.02541704,119.18,119.14,53.02541704]
[1741648739369,53.02541704,119.17,119.13,73.16757861]
[1741648739663,62.38541704,119.18,119.14,82.40251704]
[1741648739961,62.38541704,119.18,119.14,29.3771]
[1741648739962,9.36,119.18,119.14,29.3771]
[1741648740141,53.02541704,119.16,119.14,29.3771]
[1741648740342,62.38541704,119.18,119.14,82.40251704]
[1741648740663,9.36,119.18,119.17,20.0]
[1741648741040,53.08841704,119.21,119.17,73.02541704]
[1741648741372,53.02541704,119.2,119.17,20.0]
[1741648741542,53.02541704,119.19,119.15,53.02541704]
[1741648741880,0.063,119.21,119.17,53.02541704]
[1741648741881,53.08841704,119.21,119.17,53.02541704]
[1741648742170,222.26,119.22,119.2,53.02541704]
[1741648742332,53.02541704,119.25,119.2,53.02541704]
[1741648742535,53.02541704,119.24,119.2,53.02541704]
[1741648742765,9.38,119.26,119.2,53.02541704]
[1741648743062,9.38,119.26,119.18,0.14216157]
[1741648743063,53.02541704,119.25,119.21,53.02541704]
[1741648743265,53.02541704,119.23,119.19,73.02541704]
[1741648743759,53.02541704,119.22,119.2,8.3892]
[1741648743952,53.02541704,119.23,119.2,8.3892]
[1741648744159,53.02541704,119.24,119.2,8.3892]
[1741648744340,53.02541704,119.24,119.2,29.3623]
[1741648745150,53.02541704,119.25,119.21,53.02541704]
[1741648745351,53.02541704,119.27,119.23,73.02541704]
[1741648745766,53.02541704,119.24,119.23,28.3869]
[1741648745942,53.02541704,119.25,119.23,28.3869]
[1741648746147,53.08841704,119.28,119.23,28.3869]
[1741648746148,62.38541704,119.26,119.23,28.3869]
[1741648746347,9.36,119.26,119.23,81.41231704]
[1741648746664,53.02541704,119.25,119.23,28.3869]
[1741648746872,53.02541704,119.24,119.19,8.3899]
[1741648747039,53.02541704,119.25,119.2,53.02541704]
[1741648747246,53.02541704,119.24,119.2,53.02541704]
[1741648747851,53.02541704,119.24,119.2,8.3892]
[1741648748035,53.02541704,119.24,119.2,61.41461704]
[1741648748241,53.02541704,119.23,119.2,8.3892]
[1741648748751,9.423,119.26,119.2,8.3892]
[1741648748951,53.02541704,119.25,119.2,82.38771704]
[1741648749167,62.44841704,119.26,119.23,20.0]
[1741648749363,0.063,119.26,119.23,73.02541704]
[1741648750071,0.063,119.26,119.24,8.3864]
[1741648750281,53.08841704,119.26,119.24,8.3864]
[1741648750768,0.063,119.26,119.24,8.3864]
[1741648751145,53.08841704,119.26,119.24,8.3864]
[1741648751541,0.063,119.26,119.24,8.3864]
[1741648751969,0.063,119.26,119.24,61.41181704]
[1741648752173,0.063,119.28,119.27,20.0]
[1741648752349,0.0001,119.28,119.27,20.0]
[1741648752547,0.0001,119.28,119.27,73.30974018]
[1741648752741,62.48841704,119.32,119.27,73.30974018]
[1741648752966,53.02541704,119.31,119.27,73.30974018]
[1741648753471,53.02541704,119.31,119.27,53.30974018]
[1741648753775,53.02541704,119.3,119.25,9.021]
[1741648753970,53.02541704,119.27,119.26,20.0]
[1741648754766,53.02541704,119.27,119.23,8.3871]
[1741648755046,8.3815,119.31,119.21,8.3885]
[1741648755047,53.02541704,119.24,119.21,8.3885]
[1741648755349,53.02541704,119.22,119.18,8.3903]
[1741648755550,53.02541704,119.2,119.13,78.18891704]
[1741648755751,53.02541704,119.2,119.16,8.392]
[1741648755974,53.02541704,119.2,119.13,8.3939]
[1741648755975,61.41461704,119.2,119.13,8.3939]
[1741648756155,61.41461704,119.2,119.11,8.3955]
[1741648756156,20.0,119.17,119.11,8.3955]
[1741648756479,53.02541704,119.12,119.1,8.426]
[1741648756773,53.02541704,119.16,119.1,0.03]
[1741648756979,53.02541704,119.11,119.1,0.03]
[1741648757355,53.02541704,119.11,119.08,0.03]
[1741648757356,337.63083408,119.11,119.08,0.03]
[1741648757571,9.56,119.1,119.08,8.4275]
[1741648757884,53.02541704,119.09,119.08,0.03]
[1741648758445,222.12,119.11,119.08,0.03]
[1741648758754,222.12,119.11,119.1,20.0]
[1741648758954,275.14541704,119.11,119.08,0.03]
[1741648759269,53.02541704,119.09,119.08,0.03]
[1741648759653,222.12,119.11,119.08,53.33974018]
[1741648760069,222.12,119.11,119.1,20.0]
[1741648760663,222.12,119.11,119.1,73.30974018]
[1741648760973,222.12,119.11,119.1,20.0]
[1741648761173,4.1879,119.21,119.1,73.30974018]
[1741648761174,53.02541704,119.15,119.1,73.30974018]
[1741648761370,62.62541704,119.16,119.14,20.0]
[1741648761558,9.6,119.16,119.15,20.0]
[1741648761755,62.62541704,119.16,119.1,0.14216157]
[1741648762080,53.02541704,119.14,119.13,28.3941]
[1741648762372,9.6,119.16,119.13,28.3941]
[1741648762373,53.02541704,119.15,119.13,28.3941]
[1741648763072,62.62541704,119.16,119.13,49.3795]
[1741648763588,9.6,119.16,119.13,49.3795]
[1741648763779,275.24541704,119.18,119.14,53.30974018]
[1741648763947,53.02541704,119.21,119.16,53.02541704]
[1741648764153,9.58,119.22,119.18,29.3672]
[1741648764354,53.02541704,119.19,119.18,8.3906]
[1741648764858,53.02541704,119.21,119.18,8.3906]
[1741648765064,62.60541704,119.22,119.18,8.3906]
[1741648765376,53.02541704,119.23,119.18,61.41601704]
[1741648765578,53.02541704,119.23,119.19,53.02541704]
[1741648765877,231.82,119.24,119.2,53.02541704]
[1741648766085,231.82,119.24,119.19,0.28432314]
[1741648766086,222.24,119.24,119.22,61.41321704]
[1741648766379,0.063,119.25,119.24,20.0]
[1741648766682,53.08841704,119.25,119.22,8.3878]
[1741648766888,53.02541704,119.23,119.22,8.3878]
[1741648767073,0.063,119.25,119.22,29.3574]
[1741648767269,0.063,119.25,119.24,20.0]
[1741648767471,53.08841704,119.25,119.24,20.0]
[1741648767666,0.063,119.25,119.22,29.3574]
[1741648767870,0.063,119.25,119.22,82.38281704]
[1741648768085,0.063,119.25,119.24,20.0]
[1741648768278,0.063,119.25,119.24,28.3864]
[1741648768865,62.58541704,119.26,119.24,28.3864]
[1741648769581,0.063,119.27,119.24,49.3525]
[1741648769784,53.02541704,119.29,119.25,53.02541704]
[1741648769980,53.02541704,119.28,119.24,144.31011704]
[1741648770183,222.26,119.3,119.24,49.3525]
[1741648770184,53.02541704,119.27,119.24,49.3525]
[1741648770365,53.02541704,119.26,119.24,49.3525]
[1741648770685,53.02541704,119.25,119.24,8.3864]
[1741648770882,62.56541704,119.25,119.24,8.3864]
[1741648771377,62.56541704,119.25,119.22,20.0]
[1741648771580,53.02541704,119.23,119.2,29.3623]
[1741648771769,53.02541704,119.22,119.2,29.3623]
[1741648771975,53.02541704,119.21,119.18,20.9765]
[1741648772269,9.603,119.25,119.18,20.9765]
[1741648772270,53.02541704,119.19,119.18,20.0]
[1741648772578,53.02541704,119.19,119.18,8.3906]
[1741648772782,9.56,119.2,119.19,20.0]
[1741648772983,53.02541704,119.22,119.19,20.0]
[1741648773169,53.02541704,119.22,119.18,82.39261704]
[1741648773372,53.02541704,119.23,119.19,53.02541704]
[1741648773688,53.08841704,119.25,119.21,73.02541704]
[1741648773994,231.1382,119.3,119.24,0.28432314]
[1741648774164,231.1382,119.3,119.24,53.02541704]
[1741648774165,9.56,119.29,119.24,53.02541704]
[1741648774363,53.02541704,119.28,119.24,29.3525]
[1741648774588,53.02541704,119.27,119.24,29.3525]
[1741648774773,53.02541704,119.26,119.24,29.3525]
[1741648775085,53.02541704,119.25,119.24,8.3864]
[1741648775386,53.02541704,119.25,119.21,20.9696]
[1741648775563,0.28432314,119.27,119.22,8.3878]
[1741648776072,53.02541704,119.23,119.22,8.3878]
[1741648776374,62.56541704,119.23,119.19,20.9746]
[1741648776578,62.56541704,119.23,119.19,29.3645]
[1741648776892,53.02541704,119.21,119.19,8.3899]
[1741648777284,53.02541704,119.22,119.19,8.3899]
[1741648777465,53.02541704,119.22,119.18,53.02541704]
[1741648777466,53.02541704,119.2,119.15,53.02541704]
[1741648777675,53.02541704,119.18,119.15,29.3746]
[1741648777991,53.02541704,119.19,119.15,82.40001704]
[1741648778367,53.02541704,119.18,119.15,29.3746]
[1741648778566,53.02541704,119.18,119.17,28.3913]
[1741648778987,53.02541704,119.19,119.17,28.3913]
[1741648779697,275.18541704,119.21,119.17,102.39511704]
[1741648780074,53.02541704,119.2,119.17,49.3697]
[1741648780394,275.18541704,119.21,119.17,102.39511704]
[1741648780783,222.16,119.21,119.19,53.02541704]
[1741648780975,222.16,119.21,119.2,20.0]
[1741648781686,222.16,119.21,119.2,8.3892]
[1741648782091,62.54541704,119.24,119.22,20.0]
[1741648782292,230.6003,119.26,119.23,20.0]
[1741648782293,222.18,119.26,119.23,20.0]
[1741648782592,275.20541704,119.26,119.25,20.0]
[1741648782964,222.18,119.26,119.25,20.0]
[1741648783171,275.20541704,119.26,119.25,20.0]
[1741648783391,275.20541704,119.26,119.23,20.0]
[1741648783616,53.02541704,119.24,119.23,20.0]
[1741648783798,53.02541704,119.24,119.21,8.3885]
[1741648783970,53.02541704,119.22,119.21,8.3885]
[1741648784307,53.02541704,119.23,119.21,29.3598]
[1741648784473,53.02541704,119.22,119.21,8.3885]
[1741648785769,62.52541704,119.23,119.2,53.02541704]
[1741648785972,9.5,119.23,119.21,53.02541704]
[1741648786282,222.18,119.26,119.22,73.02541704]
[1741648786483,222.18,119.26,119.25,20.0]
[1741648786800,275.20541704,119.26,119.24,20.0]
[1741648787006,222.18,119.26,119.25,20.0]
[1741648787682,275.20541704,119.26,119.25,20.0]
[1741648787878,222.18,119.26,119.25,20.0]
[1741648789675,275.20541704,119.26,119.25,20.0]
[1741648790005,275.20541704,119.26,119.25,28.3857]
[1741648791080,222.18,119.26,119.25,28.3857]
[1741648792091,275.20541704,119.26,119.25,28.3857]
[1741648792399,222.18,119.26,119.25,28.3857]
[1741648793201,0.063,119.27,119.25,81.41111704]
[1741648793509,53.02541704,119.3,119.25,102.37541704]
[1741648793675,53.02541704,119.3,119.26,53.30974018]
[1741648793880,53.02541704,119.3,119.27,29.3451]
[1741648794784,53.02541704,119.29,119.27,29.3451]
[1741648794979,53.02541704,119.29,119.27,8.3843]
[1741648795193,53.02541704,119.28,119.27,8.3843]
[1741648796016,0.03,119.29,119.26,29.3476]
[1741648796194,0.03,119.29,119.28,20.0]
[1741648796390,275.14541704,119.31,119.28,20.0]
[1741648796789,275.14541704,119.31,119.27,53.02541704]
[1741648797195,275.14541704,119.31,119.3,20.0]
[1741648798687,222.12,119.31,119.3,20.0]
[1741648798883,0.063,119.32,119.31,0.28432314]
[1741648799083,0.0001,119.32,119.31,73.30974018]
[1741648799290,0.0001,119.32,119.31,20.0]
[1741648800209,0.0001,119.32,119.28,82.15691704]
[1741648800395,53.02541704,119.31,119.28,29.3417]
[1741648800595,0.0001,119.32,119.3,73.02541704]
[1741648800792,0.0001,119.32,119.31,20.0]
[1741648800987,53.02551704,119.32,119.31,20.0]
[1741648801308,0.0001,119.32,119.28,29.3417]
[1741648801484,53.02541704,119.29,119.28,8.3836]
[1741648801684,53.02541704,119.29,119.27,8.3843]
[1741648802104,106.05083408,119.28,119.25,0.063]
[1741648802294,53.02541704,119.26,119.25,0.063]
[1741648802499,62.36541704,119.26,119.25,0.063]
[1741648803011,9.34,119.26,119.25,20.063]
[1741648803182,222.02,119.28,119.25,0.063]
[1741648803383,53.02541704,119.26,119.25,0.063]
[1741648804399,62.42541704,119.26,119.25,0.063]
[1741648804913,66.60644018,119.26,119.25,0.063]
[1741648805087,83.32954018,119.26,119.25,0.063]
[1741648805431,53.02541704,119.2,119.17,0.03]
[1741648805595,9.44,119.2,119.17,8.4212]
[1741648805786,9.44,119.2,119.18,53.02541704]
[1741648805983,8.3836,119.29,119.19,53.30974018]
[1741648805984,8.1867,119.29,119.19,53.30974018]
[1741648806189,53.02541704,119.26,119.22,53.02541704]
[1741648806410,53.02541704,119.24,119.21,8.3885]
[1741648806610,53.02541704,119.22,119.21,8.3885]
[1741648807187,115.55083408,119.22,119.17,0.03]
[1741648807525,53.02541704,119.18,119.17,0.03]
[1741648807816,275.12541704,119.21,119.17,8.4212]
[1741648808016,275.12541704,119.21,119.17,61.44661704]
[1741648808318,222.1,119.21,119.2,0.063]
[1741648808526,9.5,119.22,119.21,20.0]
[1741648808690,53.02541704,119.22,119.2,0.063]
[1741648808884,53.02541704,119.21,119.2,0.063]
[1741648810429,61.69824018,119.21,119.2,0.063]
[1741648810622,82.08432314,119.2,119.17,0.03]
[1741648810830,53.02541704,119.18,119.17,0.03]
[1741648811610,53.02541704,119.19,119.17,0.03]
[1741648811924,9.54,119.22,119.18,53.02541704]
[1741648812131,9.54,119.22,119.19,73.02541704]
[1741648812330,62.56541704,119.22,119.19,20.0]
[1741648812520,53.02541704,119.21,119.2,20.0]
[1741648812704,53.02541704,119.21,119.18,8.3906]
[1741648813116,53.02541704,119.22,119.18,82.39261704]
[1741648813731,53.02541704,119.2,119.18,8.3906]
[1741648814235,53.02541704,119.19,119.17,0.03]
[1741648814408,62.56541704,119.18,119.17,0.03]
[1741648814813,62.84974018,119.18,119.17,0.03]
[1741648815001,132.49765722,119.18,119.17,0.03]
[1741648815205,132.49765722,119.18,119.13,0.03]
[1741648815407,53.02541704,119.14,119.13,0.03]
[1741648815615,275.22541704,119.14,119.13,0.03]
[1741648816234,257.52082387,119.14,119.13,0.03]
[1741648816411,222.2,119.14,119.13,28.4241]
[1741648816919,257.52082387,119.14,119.13,0.03]
[1741648817415,257.52082387,119.14,119.13,8.4241]
[1741648817625,257.52082387,119.14,119.13,0.03]
[1741648818304,275.48217721,119.14,119.13,0.03]
[1741648819045,285.06217721,119.14,119.13,0.03]
[1741648819756,0.28432314,119.13,119.08,0.03]
[1741648819917,52.99785407,119.09,119.08,0.03]
[1741648820113,222.2,119.14,119.1,20.0]
[1741648820317,222.2,119.14,119.13,0.03]
[1741648820833,52.99785407,119.18,119.13,53.31217721]
[1741648821022,52.99785407,119.18,119.14,52.99785407]
[1741648821637,222.24,119.19,119.13,0.31432314]
[1741648821638,222.24,119.19,119.16,52.99785407]
[1741648821827,222.24,119.19,119.17,52.99785407]
[1741648822018,222.24,119.19,119.18,20.0]
[1741648822439,275.23785407,119.19,119.15,52.99785407]
[1741648822614,222.24,119.19,119.15,72.99785407]
[1741648822815,222.24,119.19,119.16,52.99785407]
[1741648823125,222.24,119.19,119.15,93.97975407]
[1741648823330,52.99785407,119.18,119.15,40.9819]
[1741648823915,52.99785407,119.17,119.15,40.9819]
[1741648824138,52.99785407,119.16,119.14,8.3934]
[1741648824337,52.99785407,119.15,119.14,8.3934]
[1741648824635,62.61785407,119.15,119.13,21.0154]
[1741648825337,52.99785407,119.14,119.13,0.03]
[1741648825546,9.62,119.15,119.13,0.03]
[1741648825734,52.99785407,119.17,119.13,53.02785407]
[1741648825922,52.99785407,119.18,119.14,52.99785407]
[1741648826248,52.99785407,119.18,119.13,53.31217721]
[1741648826422,52.99785407,119.18,119.14,52.99785407]
[1741648826613,52.99785407,119.18,119.15,29.3746]
[1741648826826,222.24,119.19,119.15,82.37245407]
[1741648827012,231.82,119.19,119.16,52.99785407]
[1741648827637,284.81785407,119.19,119.15,82.37245407]
[1741648828229,222.24,119.23,119.18,20.0]
[1741648828536,62.57785407,119.25,119.21,52.99785407]
[1741648828739,52.99785407,119.23,119.2,29.3623]
[1741648829123,62.55785407,119.23,119.2,29.3623]
[1741648829634,62.55785407,119.24,119.2,82.36015407]
[1741648830144,52.99785407,119.23,119.2,29.3623]
[1741648830353,62.55785407,119.24,119.2,29.3623]
[1741648830644,52.99785407,119.23,119.2,29.3623]
[1741648831540,62.55785407,119.24,119.2,82.36015407]
[1741648831739,222.24,119.27,119.2,82.36015407]
[1741648831740,275.23785407,119.27,119.23,72.99785407]
[1741648831935,222.24,119.27,119.24,52.99785407]
[1741648832947,231.78,119.27,119.25,8.3857]
[1741648833742,0.03,119.29,119.25,82.34785407]
[1741648834150,53.02785407,119.29,119.25,82.34785407]
[1741648834342,0.0001,119.29,119.28,72.99785407]
[1741648834532,0.0001,119.29,119.28,73.28217721]
[1741648834730,0.0001,119.29,119.28,126.28003128]
[1741648835035,0.0001,119.29,119.28,81.66577721]
[1741648835431,0.0001,119.29,119.28,134.66363128]
[1741648836026,0.0001,119.29,119.28,136.66363128]
[1741648836263,0.0001,119.29,119.28,140.68643128]
[1741648836551,0.0001,119.32,119.31,52.99785407]
[1741648836730,0.0001,119.32,119.31,53.28217721]
[1741648836929,0.0001,119.32,119.31,61.66367721]
[1741648837350,0.0001,119.32,119.31,61.37935407]
[1741648839234,52.99785407,119.31,119.28,8.3834]
[1741648839772,9.5001,119.32,119.3,52.99785407]
[1741648839773,0.0001,119.32,119.3,52.99785407]
[1741648840055,0.0001,119.32,119.31,20.0]
[1741648840248,52.99795407,119.32,119.28,82.34025407]
[1741648840457,52.99785407,119.31,119.28,8.3834]
[1741648840642,52.99795407,119.32,119.28,61.38125407]
[1741648840838,0.0001,119.32,119.29,52.99785407]
[1741648841157,52.99795407,119.32,119.28,82.34025407]
[1741648841348,52.99795407,119.32,119.28,61.38125407]
[1741648842231,0.0001,119.32,119.3,52.99785407]
[1741648842626,0.0001,119.32,119.31,72.99785407]
[1741648843251,0.0001,119.32,119.31,73.28217721]
[1741648843457,0.0001,119.32,119.31,81.66367721]
[1741648843683,0.0001,119.34,119.32,0.28432314]
[1741648843859,0.0001,119.34,119.33,53.28217721]
[1741648844062,0.063,119.38,119.32,0.28432314]
[1741648844063,0.063,119.38,119.36,72.99785407]
[1741648844244,0.063,119.38,119.37,52.99785407]
[1741648844645,0.063,119.38,119.36,52.99785407]
[1741648844844,0.063,119.38,119.37,52.99785407]
[1741648845039,0.063,119.38,119.37,20.0]
[1741648845359,0.063,119.38,119.37,28.3773]
[1741648845548,53.06085407,119.38,119.34,8.3794]
[1741648845859,52.99785407,119.36,119.33,8.3798]
[1741648846047,52.99785407,119.35,119.33,8.3798]
[1741648846360,52.99785407,119.37,119.33,29.3301]
[1741648846664,0.063,119.38,119.33,8.3798]
[1741648846665,52.99785407,119.36,119.33,8.3798]
[1741648847234,52.99785407,119.35,119.31,73.95145407]
[1741648847454,52.99785407,119.36,119.32,82.33065407]
[1741648847661,52.99785407,119.37,119.33,52.99785407]
[1741648848046,53.06085407,119.38,119.34,52.99785407]
[1741648848269,0.063,119.38,119.35,52.99785407]
[1741648848657,0.063,119.38,119.36,52.99785407]
[1741648849045,0.063,119.38,119.35,72.99785407]
[1741648849373,0.063,119.38,119.36,8.378]
[1741648849565,53.06085407,119.38,119.36,8.378]
[1741648849755,0.063,119.38,119.36,8.378]
[1741648852268,0.063,119.38,119.36,61.37585407]
[1741648852850,0.063,119.38,119.37,52.99785407]
[1741648853045,0.063,119.39,119.37,52.99785407]
[1741648853267,222.06,119.4,119.38,72.99785407]
[1741648853481,222.06,119.4,119.39,28.3759]
[1741648853971,275.05785407,119.4,119.37,8.3773]
[1741648854343,52.99785407,119.39,119.37,8.3773]
[1741648854772,222.06,119.4,119.37,8.3773]
[1741648854965,275.05785407,119.4,119.37,8.3773]
[1741648855469,52.99785407,119.39,119.36,8.378]
[1741648856256,35.17181294,119.38,119.36,8.378]
[1741648856469,35.17181294,119.39,119.36,8.378]
[1741648857377,222.09,119.4,119.38,35.17181294]
[1741648857676,222.09,119.4,119.39,8.3759]
[1741648858053,222.09,119.4,119.39,28.3759]
[1741648858262,222.09,119.4,119.39,63.54771294]
[1741648858660,0.063,119.41,119.39,63.54771294]
[1741648859783,35.23481294,119.41,119.39,28.3759]
[1741648860272,35.17181294,119.4,119.37,8.3773]
[1741648860478,35.17181294,119.38,119.36,8.3776]
[1741648860875,35.17181294,119.37,119.36,8.3776]
[1741648861473,43.48471294,119.37,119.33,8.3801]
[1741648861670,43.48471294,119.37,119.33,43.55191294]
[1741648861872,43.48471294,119.37,119.33,64.50221294]
[1741648862276,52.88471294,119.37,119.33,64.50221294]
[1741648862453,9.4,119.37,119.35,35.17181294]
[1741648862665,44.57181294,119.37,119.36,20.0]
[1741648862868,44.57181294,119.37,119.33,29.3304]
[1741648863084,35.17181294,119.36,119.33,8.3801]
[1741648863287,35.17181294,119.34,119.31,0.063]
[1741648863591,35.17181294,119.32,119.31,0.063]
[1741648863885,44.57181294,119.32,119.31,0.063]
[1741648864085,9.4,119.32,119.31,0.063]
[1741648864460,9.4,119.32,119.31,20.063]
[1741648864461,44.57181294,119.32,119.31,20.063]
[1741648864660,44.57181294,119.32,119.31,0.063]
[1741648864878,9.4,119.32,119.31,20.063]
[1741648865200,269.08351294,119.4,119.31,55.23481294]
[1741648865405,35.17181294,119.38,119.34,35.17181294]
[1741648865761,35.17181294,119.37,119.33,35.17181294]
[1741648866065,35.17181294,119.37,119.34,8.3794]
[1741648866388,35.17181294,119.35,119.32,8.3808]
[1741648867174,35.17181294,119.33,119.31,8.4444]
[1741648867387,9.4,119.37,119.31,8.4444]